Cogmind - Beta 12 X4 @@@ ROGUE MODE // 2022.10.04 @ 12:33:15 Player: btmk16 Result: Destroyed by D-53 Grenadier with Mini Grenade Launcher Performance ------------- Evolutions (0) 0 Regions Visited (2) 400 Robots Destroyed (13) 65 Value Destroyed (272) 272 Prototype IDs (2) 40 Alien Tech Used (0) 0 Bonus (21) 21 TOTAL SCORE: 798 Bonus ------- Follower Combat Kills 21 Cogmind --------- Core Integrity 0/250 Matter 300/300 Energy 250/250 System Corruption 1% Temperature Cool (0) Movement Treading (240) Ox1 Location -10/Mines Parts ------- > --- POWER (1) -------- Ion Engine > --- PROPULSION (2) --- Light Treads > --- UTILITY (2) ------ Heat Sink Large Storage Unit > --- WEAPON (2) ------- Particle Gun Spread Laser > --- INVENTORY (15) --- Ion Engine Light Treads Light Treads Flight Unit Heat Sink Heat Sink Small Storage Unit Seismic Detector Particle Gun Spread Laser Spread Laser Light Assault Rifle EMP Blaster Peak State ------------ > --- POWER ------------ Ion Engine > --- PROPULSION ------- Light Treads Light Treads > --- UTILITY ---------- Heat Sink Large Storage Unit > --- WEAPON ----------- Spread Laser Spread Laser > --- INVENTORY -------- Ion Engine Light Treads Light Treads Light Treads Flight Unit Heat Sink Heat Sink Small Storage Unit Seismic Detector Particle Gun Particle Gun Particle Gun Spread Laser Light Assault Rifle EMP Blaster [Rating: 11] Favorites ----------- Power Ion Engine Engine Ion Engine Propulsion Light Treads Treads Light Treads Utility Large Storage Unit Device Heat Sink Storage Large Storage Unit Processor Signal Interpreter Weapon Particle Gun Energy Gun Particle Gun Ballistic Gun Light Assault Rifle Build | -11 -10 -10 ------- Run | Scr Mat Min Slots Evolved . | . . . Power . | . . . Propulsion . | . . . Utility . | . . . Weapon . | . . . Parts Attached 19 | 6 11 2 Power 2 | 1 1 . Engine 2 | 1 1 . Core . | . . . Reactor . | . . . Propulsion 5 | 2 2 1 Treads 5 | 2 2 1 Leg . | . . . Wheel . | . . . Hover . | . . . Flight . | . . . Utility 4 | 1 3 . Device 1 | . 1 . Storage 2 | 1 1 . Processor 1 | . 1 . Hackware . | . . . Protection . | . . . Artifact . | . . . Weapon 8 | 2 5 1 Energy Gun 7 | 1 5 1 Energy Cannon . | . . . Ballistic Gun 1 | 1 . . Ballistic Cannon . | . . . Launcher . | . . . Special Weapon . | . . . Impact Weapon . | . . . Slashing Weapon . | . . . Piercing Weapon . | . . . Special Melee Weapon . | . . . Unidentified Prototypes . | . . . Parts Lost 3 | . . 3 Power . | . . . Propulsion 2 | . . 2 Utility . | . . . Weapon 1 | . . 1 Highest Loss Streak 2 | . . 2 To Critical Strikes 1 | . . 1 Average Slot Usage (%) 99 | . 99 100 Engine 14 | . 14 14 Treads 28 | . 28 28 Device 5 | . 2 14 Storage 14 | . 14 14 Processor 7 | . 10 . Energy Gun 24 | . 22 28 Ballistic Gun 3 | . 5 . Naked Turns . | . . . Heaviest Build 32 | 13 32 32 Greatest Support 40 | 40 40 40 Greatest Overweight (x) 1 | . . 1 Average Overweight (x) . | . . . Largest Inventory Capacity 15 | 8 15 15 Average Capacity 14 | 7 14 15 Most Carried 15 | 6 15 15 Average Carried 11 | 2 11 13 Final Capacity 15 | 8 15 15 Final Carried 15 | 6 15 13 Class Distribution -------------------- 100% | Mutant Dominant Class ---------------- Mutant | -10/Materials Mutant | -10/Mines Resources | -11 -10 -10 ----------- Run | Scr Mat Min Matter Collected 404 | 171 187 46 Remotely . | . . . Salvage Created 453 | . 439 14 Parts 26 | . 26 . Haulers Intercepted 1 | . 1 . Recyclers Shooed . | . . . Parts Field Recycled . | . . . Retrieved Matter . | . . . Parts Self-Destructed . | . . . Prevented . | . . . Kills | -11 -10 -10 ------- Run | Scr Mat Min Combat Hostiles Destroyed 12 | . 9 3 Guns 12 | . 9 3 Classes Destroyed 7 | . 6 1 Worker 1 | . 1 . Hauler 1 | . 1 . Recycler 1 | . 1 . Watcher 1 | . 1 . Swarmer 3 | . 3 . Grunt 6 | . 6 . Assembled 3 | . . 3 Best Kill Streak 3 | . 3 3 Combat Bots Only 3 | . 3 3 Max Kills in Single Turn 1 | . 1 1 Gunslinging . | . . . Exploded . | . . . Melee . | . . . Uniques/NPCs Destroyed . | . . . Combat | -11 -10 -10 -------- Run | Scr Mat Min Damage Taken 1067 | . 399 668 Core 251 | . 83 168 Absorbed by Shields . | . . . Core Remaining (%) 100 | 100 . . Volleys Fired 41 | . 34 7 Largest 2 | . 2 2 Hottest 130 | . 130 130 Shots Fired 82 | . 68 14 Gun 82 | . 68 14 Cannon . | . . . Launcher . | . . . Special . | . . . Kinetic 18 | . 18 . Thermal 64 | . 50 14 Explosive . | . . . Electromagnetic . | . . . Robot Hit Streak 9 | . 9 5 Robot Miss Streak 4 | . 3 4 Penetration Max . | . . . Secondary Targets 2 | . . 2 Max Gunslinging Chain 1 | . . 1 Shots Hit Robots 56 | . 44 12 Core Hits 36 | . 20 16 Critical Kills . | . . . Critical Parts Destroyed . | . . . Critical Strikes 1 | . 1 . Burn 1 | . 1 . Melee Attacks . | . . . Impact . | . . . Slashing . | . . . Piercing . | . . . Sneak Attacks . | . . . Combat Hostiles . | . . . Follow-up Attacks . | . . . Damage Inflicted 757 | . 613 144 Guns 756 | . 612 144 Cannons . | . . . Explosions . | . . . Melee . | . . . Ramming 1 | . 1 . Kinetic 90 | . 90 . Thermal 666 | . 522 144 Explosive . | . . . Electromagnetic . | . . . Impact . | . . . Slashing . | . . . Piercing . | . . . Highest Corruption 1 | . 1 1 Average Corruption 1 | . 1 1 Corruption Purged . | . . . Corruption Blocked . | . . . Effects 7 | . 4 3 Message Errors 1 | . 1 . Matter Fused 1 | . 1 . Heat Flow Errors 1 | . . 1 Energy Discharges 1 | . 1 . Data Loss (minor) 2 | . 1 1 Alerts 1 | . . 1 Overload Shots . | . . . Overflow Damage . | . . . Projectiles . | . . . Explosions . | . . . Melee . | . . . Knockbacks . | . . . Impact . | . . . Kinetic . | . . . Secondary . | . . . Self-Inflicted Damage . | . . . Shots . | . . . Rammed 1 | . 1 . Targets Rammed 1 | . 1 . Kicked . | . . . Crushed . | . . . Highest Temperature 304 | . 304 242 Average Temperature 108 | . 108 106 Received Heat Transfer 219 | . 219 . Effects 3 | . 3 . Interference 3 | . 3 . Siege Activations . | . . . Robots Corrupted . | . . . Combat Hostiles . | . . . Parts Fried . | . . . Impact Corruptions . | . . . Robots Melted . | . . . Combat Hostiles . | . . . Parts Melted 2 | . 2 . Heat Transferred 1586 | . 1406 180 Parts Sabotaged . | . . . Parts Stolen . | . . . Parts Stripped . | . . . Power Chain Reactions . | . . . Missiles Intercepted . | . . . Alert | -11 -10 -10 ------- Run | Scr Mat Min Peak Influence 209 | . 209 104 Initial 43 | . . 43 Average 59 | . 69 42 Maximum Alert Level 1 | . 1 . Low Security (%) 97 | 100 96 100 Level 1 2 | . 3 . Level 2 . | . . . Level 3 . | . . . Level 4 . | . . . Level 5 . | . . . High Security . | . . . Max Security . | . . . Squads Dispatched 2 | . 2 . Investigation 1 | . 1 . Extermination . | . . . Reinforcement 1 | . 1 . Assault . | . . . Garrison . | . . . Intercept . | . . . Searches Triggered . | . . . Construction Impeded . | . . . Haulers Reinforced . | . . . Active Scanning Responses . | . . . Cargo Convoy Interrupts . | . . . Stealth | -11 -10 -10 --------- Run | Scr Mat Min Distress Signals 2 | . 2 . Communications Jammed . | . . . Distress Signals . | . . . Times Spotted 28 | . 19 9 Peak Tracking Total 5 | . 4 5 Tactical Retreats 2 | . 1 1 Traps | -11 -10 -10 ------- Run | Scr Mat Min Traps Triggered 2 | . 2 . Indirectly . | . . . Trap Hack Attempts . | . . . Triggered . | . . . Disarmed . | . . . Reprogrammed . | . . . Reused . | . . . Traps Extracted . | . . . Installed . | . . . Triggered . | . . . Machines | -11 -10 -10 ---------- Run | Scr Mat Min Machines Disabled . | . . . Max in Single Turn . | . . . Machines Sabotaged . | . . . Overloaded Fab Kills . | . . . Hacking | -11 -10 -10 --------- Run | Scr Mat Min Machines Accessed 6 | . 6 . Terminals 6 | . 6 . Fabricators . | . . . Repair Stations . | . . . Recycling Units . | . . . Scanalyzers . | . . . Garrison Access . | . . . Total Hacks 18 | . 18 . Successful 10 | . 10 . Failed 7 | . 7 . Catastrophic 1 | . 1 . Database Lockouts 1 | . 1 . Manual 8 | . 8 . Terminals 18 | . 18 . Fabricators . | . . . Repair Stations . | . . . Recycling Units . | . . . Scanalyzers . | . . . Garrison Access . | . . . Terminal Hacks 9 | . 9 . Robot Analysis 3 | . 3 . Prototype ID Bank 1 | . 1 . Level Access Points 1 | . 1 . Terminal Index 1 | . 1 . Surveillance Status 1 | . 1 . Zone Layout 2 | . 2 . Fabricator Hacks . | . . . Repair Station Hacks . | . . . Recycling Unit Hacks . | . . . Scanalyzer . | . . . Garrison Access Hacks . | . . . Unauthorized Hacks 1 | . 1 . Terminals 1 | . 1 . Botnet 1 | . 1 . Fabricators . | . . . Repair Stations . | . . . Recycling Units . | . . . Scanalyzers . | . . . Garrison Access . | . . . Data Cores Recovered . | . . . Used . | . . . Hacking Detections 3 | . 3 . Full Trace Events . | . . . Feedback Events . | . . . Feedback Blocked . | . . . Robot Schematics Acquired . | . . . Robots Built . | . . . Authchips . | . . . Time . | . . . Total Robot Build Rating . | . . . Part Schematics Acquired . | . . . Parts Built . | . . . Authchips . | . . . Time . | . . . Total Part Build Rating . | . . . Parts Repaired . | . . . Time . | . . . Parts Recycled . | . . . Recycled Matter . | . . . Retrieved Matter . | . . . Retrieved Components . | . . . Parts Scanalyzed . | . . . Part Schematics Acquired . | . . . Parts Damaged . | . . . Bothacking | -11 -10 -10 ------------ Run | Scr Mat Min Used RIF Installer . | . . . Robots Hacked . | . . . Non-combat . | . . . Combat . | . . . Robot Hacks Applied . | . . . Relay Couplers Released . | . . . Fabnet Peak Effective % . | . . . Robots Rewired . | . . . Allies Hacked . | . . . Hacks Repelled . | . . . Allies | -11 -10 -10 -------- Run | Scr Mat Min Total Allies 1 | . . 1 Largest Group 1 | . . 1 Highest-Rated Group 31 | . . 31 Highest-Rated Ally 31 | . . 31 Total Orders . | . . . Ally Attacks 5 | . . 5 Total Damage 108 | . . 108 Kills 3 | . . 3 Allies Corrupted . | . . . Allies Melted . | . . . Intel | -11 -10 -10 ------- Run | Scr Mat Min Robot Analysis Total 3 | . 3 . Derelict Logs Recovered . | . . . Drone Launches . | . . . Drone Recoveries . | . . . Exploration | -11 -10 -10 ------------- Run | Scr Mat Min Turns Passed 1982 | 90 1393 499 Spaces Moved 1084 | 51 736 297 Core 5 | 5 . . Treads 1079 | 46 736 297 Legs . | . . . Wheels . | . . . Hover . | . . . Flight . | . . . Fastest Speed 50 | 50 160 160 Average Speed 159 | 149 160 160 Slowest Speed 240 | 160 160 240 Overloaded Moves . | . . . Propulsion Burnouts . | . . . Robots Hopped . | . . . Cave-ins Triggered . | . . . Exploration Rate (%) 53 | 5 95 60 Regions Visited 2 Branch Regions 1 Pre-discovered Areas . | . . . Known Exits Taken . | . . . Unknown Exits Taken 2 | 1 1 . Scrap Searched 1 | . . 1 Spaces Dug . | . . . Terrain Destroyed . | . . . Melee . | . . . Projectile . | . . . AOE . | . . . Terrain Rammed . | . . . Walls Destroyed . | . . . Machines Disabled . | . . . Actions | -11 -10 -10 --------- Run | Scr Mat Min Total 1264 | 62 896 306 Wait 77 | . 77 . Move 1082 | 50 735 297 Hop . | . . . Pick Up 24 | 6 18 . Fast Attach 9 | 6 3 . Attach 2 | . . 2 Detach 2 | . 2 . Swap 8 | . 8 . Drop 18 | . 18 . Fire 41 | . 34 7 Melee . | . . . Ram . | . . . Kick . | . . . Crush 1 | . 1 . Escape Stasis . | . . . Rewire . | . . . Trap . | . . . Miscellaneous . | . . . Route ------- -11/Scrapyard -10/Materials (discovered 5 exits: *Mat x3 / [*Min x2]) -10/Mines (discovered 2 exits: *Mat x2) History --------- Turn | Location | Event 2 | -11/Scrapyard | Met Revision 17 7 | -11/Scrapyard | Discovered new exit (range 14) 91 | -11/Scrapyard | Entered Materials 111 | -10/Materials | Identified exit to Materials 307 | -10/Materials | Build established: Mutant 329 | -10/Materials | Discovered new exit (range 12) 683 | -10/Materials | Discovered new exit (range 7) 1132 | -10/Materials | Central database locked down 1484 | -10/Materials | Entered Mines 1485 | -10/Mines | Assembled infested the area 1505 | -10/Mines | Core integrity fell below 50% 1716 | -10/Mines | Discovered exit to Materials (range 4) 1799 | -10/Mines | Received a Mining Laser from a helpful Derelict 1906 | -10/Mines | Discovered exit to Materials (range 8) 1976 | -10/Mines | Core integrity fell below 20% 1983 | -10/Mines | Destroyed by D-53 Grenadier with Mini Grenade Launcher Last Messages --------------- you don't want THEM to uncover you when the ceiling comes crashing down? Here, take my spare." 01802_ 05-68L(g): "You're apparently new around these parts, I'll cover you." 01807_ 05-68L(g): "Mining lasers are a lot more useful than you might think..." 01887_ System corrupted: Component data lost. 01906_ EXIT=FOUND: MATERIALS 01914_ S-10 Pest destroyed. 01919_ Acquired 16 matter. 01941_ Acquired 13 matter. 01951_ R-06 Scavenger collects Flight Unit. 01970_ U-05 Engineer builds a Wall. 01971_ S-10 Pest destroyed. 01975_ 05-68L(g) destroyed. 01975_ U-05 Engineer destroyed. 01981_ Lgt. Treads destroyed. 01981_ U-05 Engineer lays Concrete. 01982_ The unstable cave ceiling collapses. 01982_ U-05 Engineer lays Concrete. Map ----- +----------------------------------------------------+ | ?????????????????????????????????????????????????? | | ?????????????????????????????????????????????????? | | ???????????????????????????????????####??????????? | | ??????????????????????????????????## ##???????### | | ??????????????????????????????????# #??????## | | ??????????????????????????????????# #??????# | | ??????????????????????????????????# ##?????# | | ?????????????????????????????????## ###???# | | ?????????????????????????????????# ##??# | | ?????????????????????????????????# ##?## | | ???????????????? ????????????##### #??## | | ???????????????? ??????####### #???## | | ????????????????? ?????? ### # % ##????# | | ?????????????????? ????? t ## % ##?????? | | ?????????????????? ????# % r % ######### | | ??????????????????? ???# | | ???????????????????? #### | | ?????????????????????= u d ######### | | ?????????????????????? # ## ##???????? | | ???????????????????#### ##### ?# ##????????? | | ??????????????????## # = #???# #?????????? | | ??????????????????# # % ##???#### #?????????? | | ??????????????????### # = ######## ??????????? | | ?????????????????????# * #?????????# | | ?????????????????????# #################### | | ?????????????????????## @ #???????# = [ | | ??????????????????????## ##???????# ######## | | ???????????????????????## ##????????# #??????# | | ????????????????????????# %##?????????# #??????# | | ????????????????????????# #?????###### ####???# | | ????????????????????????# #?????# #???# | | ????????????????????????# ####### < #??## | | ????????????????????????# =%= #?## | | ????????????????????????########## ### | | ?????????????????????????????????############# # | | ?????????????????????????????????????######## ## | | ????????????????????????????????????## ## | | ???????????????????????????????????## # | | ?????????????????????????????????### ###### | | ????????????????????????????????## #????## | | ????????????????????????????????# ##?????# | | ????????????????????????????????# ##?????# | | ????????????????????????????????## ##????# | | ?????????????????????????????????### ##???# | | ??????????????????????????#####????## ##??## | | ?????????????????????????## ###???## | #???### | | ????????????????????????## ##??## #?????## | | ???????????????????????## #### ##??????? | | ???????????????????????# #???????? | | ???????????????????????#### ## ##???????? | +----------------------------------------------------+ Best States ------------- Heat Dissipation 35 Energy Generation 10 Energy Capacity 250 Matter Stores 300 Matter Capacity 300 Sight Range 16 Terrain Scan Density 10 Evasion (%) 40 Recoil Reduction 2 Item Schematics ----------------- None Robot Schematics ------------------ None Fabricated ------------ Nothing Alien Tech Used ----------------- None Achievements -------------- None Challenges ------------ None Game ------ Seed SmallGammaThruster Manual? 0 Play Time 00:12:53 Cumulative 533.8 hours Start 2022.09.26 @ 11:14:21 End 2022.10.04 @ 12:33:15 Sessions 3 Manual Loads 0 Difficulty Rogue Special Mode None Game No. 595 Rogue 594 Adventurer 0 Explorer 1 Win Type - Total 21 Types 15/0/3/3/0/0/0/0/0 Lore% 81 Gallery% 91 Achievement% 74 Wizard Run 0 Options --------- ASCII 0 Keyboard 1 Movement Vi Keybinds 0 Fullscreen 1 Font 18/SmallcapsGlow Map View 76x50 Tactical HUD 1 Map Filters NONE Filters NONE Steam 1 RUN: 05873ad0-24eb-4fcb-963f-680313a9faaa